[Event "Esbjerg Efterår 2021 - Esbjergmesterskabet"]
[Site "Esbjerg, Denmark"]
[Date "2021.10.22"]
[Round "2.1"]
[White "Pedersen, Lars Wiilton"]
[Black "Pedersen, Nicolai Vesterbæk"]
[Result "0-1"]
[TimeControl "1.-3. 20 min + 5 sek, 4.-7. 90 min + 30 sek"]
[WhiteElo "1991"]
[BlackElo "2343"]

1. Nf3 {[%clk 00:20:09]} Nf6 {[%clk 00:20:03]} {[%emt 00:00:08]} 2. c4 {[%clk
00:20:08]} {[%emt 00:00:06]} e6 {[%clk 00:20:00]} {[%emt 00:00:08]} 3. Nc3
{[%clk 00:20:07]} {[%emt 00:00:06]} d5 {[%clk 00:20:03]} {[%emt 00:00:03]} 4.
d4 {[%clk 00:19:55]} {[%emt 00:00:16]} h6 {[%clk 00:20:04]} {[%emt 00:00:04]} 5.
g3 {[%clk 00:19:36]} {[%emt 00:00:25]} Nc6 {[%clk 00:19:58]} {[%emt 00:00:12]}
6. Bg2 {[%clk 00:18:36]} {[%emt 00:01:04]} Bd6 {[%clk 00:19:57]} {[%emt
00:00:06]} 7. O-O {[%clk 00:18:16]} {[%emt 00:00:25]} O-O {[%clk 00:19:35]}
{[%emt 00:00:27]} 8. Qc2 {[%clk 00:15:19]} {[%emt 00:03:02]} dxc4 {[%clk
00:13:00]} {[%emt 00:06:40]} 9. Nb5 {[%clk 00:14:57]} {[%emt 00:00:27]} a6
{[%clk 00:10:01]} {[%emt 00:03:05]} 10. Nxd6 {[%clk 00:14:58]} {[%emt
00:00:03]} cxd6 {[%clk 00:09:57]} {[%emt 00:00:09]} 11. Qxc4 {[%clk 00:14:40]}
{[%emt 00:00:23]} d5 {[%clk 00:09:11]} {[%emt 00:00:52]} 12. Qd3 {[%clk
00:13:33]} {[%emt 00:01:11]} Bd7 {[%clk 00:06:28]} {[%emt 00:02:49]} 13. Bd2
{[%clk 00:12:26]} {[%emt 00:01:11]} Ne4 {[%clk 00:06:23]} {[%emt 00:00:10]} 14.
Rfc1 {[%clk 00:11:59]} {[%emt 00:00:32]} Nxd2 {[%clk 00:06:21]} {[%emt
00:00:07]} 15. Qxd2 {[%clk 00:11:10]} {[%emt 00:00:54]} Qb6 {[%clk 00:05:42]}
{[%emt 00:00:43]} 16. e3 {[%clk 00:10:13]} {[%emt 00:01:03]} Rfc8 {[%clk
00:05:18]} {[%emt 00:00:28]} 17. b3 {[%clk 00:10:15]} {[%emt 00:00:04]} a5
{[%clk 00:05:09]} {[%emt 00:00:14]} 18. Rab1 {[%clk 00:10:08]} {[%emt
00:00:12]} Ne7 {[%clk 00:04:24]} {[%emt 00:00:49]} 19. Ne5 {[%clk 00:09:15]}
{[%emt 00:00:58]} Bb5 {[%clk 00:04:06]} {[%emt 00:00:22]} 20. Bf1 {[%clk
00:06:55]} {[%emt 00:02:28]} Bxf1 {[%clk 00:03:55]} {[%emt 00:00:16]} 21. Kxf1
{[%clk 00:06:58]} {[%emt 00:00:02]} Nf5 {[%clk 00:03:33]} {[%emt 00:00:25]} 22.
Ke1 {[%clk 00:05:50]} {[%emt 00:01:13]} Nd6 {[%clk 00:03:34]} {[%emt 00:00:05]}
23. f3 {[%clk 00:05:24]} {[%emt 00:00:32]} Qb5 {[%clk 00:02:19]} {[%emt
00:01:18]} 24. Nd3 {[%clk 00:05:08]} {[%emt 00:00:22]} b6 {[%clk 00:02:15]}
{[%emt 00:00:09]} 25. a4 {[%clk 00:04:24]} {[%emt 00:00:49]} Rxc1+ {[%clk
00:01:33]} {[%emt 00:00:47]} 26. Nxc1 {[%clk 00:04:24]} {[%emt 00:00:05]} Qe8
{[%clk 00:01:01]} {[%emt 00:00:36]} 27. Nd3 {[%clk 00:04:11]} {[%emt 00:00:19]}
b5 {[%clk 00:00:48]} {[%emt 00:00:19]} 28. Nc5 {[%clk 00:02:13]} {[%emt
00:02:02]} bxa4 {[%clk 00:00:50]} {[%emt 00:00:03]} 29. Nxa4 {[%clk 00:02:09]}
{[%emt 00:00:09]} Qb5 {[%clk 00:00:50]} {[%emt 00:00:05]} 30. Qe2 {[%clk
00:02:04]} {[%emt 00:00:11]} Qb4+ {[%clk 00:00:28]} {[%emt 00:00:27]} 31. Qd2
{[%clk 00:02:07]} {[%emt 00:00:02]} Qb5 {[%clk 00:00:30]} {[%emt 00:00:02]} 32.
Qe2 {[%clk 00:02:11]} {[%emt 00:00:02]} Qe8 {[%clk 00:00:22]} {[%emt 00:00:11]}
33. Nc5 {[%clk 00:02:04]} {[%emt 00:00:12]} e5 {[%clk 00:00:23]} {[%emt
00:00:04]} 34. Rd1 {[%clk 00:01:43]} {[%emt 00:00:27]} Rc8 {[%clk 00:00:15]}
{[%emt 00:00:12]} 35. Na4 {[%clk 00:01:09]} {[%emt 00:00:39]} Rb8 {[%clk
00:00:13]} {[%emt 00:00:07]} 36. Nc5 {[%clk 00:01:12]} {[%emt 00:00:03]} Nb5
{[%clk 00:00:15]} {[%emt 00:00:02]} 37. Qd3 {[%clk 00:01:01]} {[%emt 00:00:16]}
exd4 {[%clk 00:00:16]} {[%emt 00:00:04]} 38. Kf2 {[%clk 00:00:43]} {[%emt
00:00:24]} dxe3+ {[%clk 00:00:18]} {[%emt 00:00:02]} 39. Qxe3 {[%clk 00:00:47]}
Qc6 {[%clk 00:00:12]} {[%emt 00:00:09]} 40. Rc1 {[%clk 00:00:18]} {[%emt
00:00:36]} Re8 {[%clk 00:00:09]} {[%emt 00:00:06]} 41. Qd2 {[%clk 00:00:13]}
{[%emt 00:00:12]} Qa8 {[%clk 00:00:07]} {[%emt 00:00:07]} 42. Re1 {[%clk
00:00:16]} {[%emt 00:00:02]} Rc8 {[%clk 00:00:10]} {[%emt 00:00:02]} 43. Rc1
{[%clk 00:00:15]} {[%emt 00:00:06]} d4 {[%clk 00:00:13]} {[%emt 00:00:02]} 44.
Qd3 {[%clk 00:00:10]} {[%emt 00:00:10]} Qc6 {[%clk 00:00:09]} {[%emt 00:00:08]}
45. Rc4 {[%clk 00:00:12]} {[%emt 00:00:04]} Qe8 {[%clk 00:00:10]} {[%emt
00:00:03]} 46. Ne4 {[%clk 00:00:16]} {[%emt 00:00:02]} Rd8 {[%clk 00:00:09]}
{[%emt 00:00:07]} 47. Rc5 {[%clk 00:00:15]} {[%emt 00:00:06]} Rb8 {[%clk
00:00:09]} {[%emt 00:00:05]} 48. Rc4 {[%clk 00:00:13]} {[%emt 00:00:07]} Kh8
{[%clk 00:00:11]} {[%emt 00:00:02]} 49. Kg2 {[%clk 00:00:16]} {[%emt 00:00:02]}
Qe6 {[%clk 00:00:11]} {[%emt 00:00:04]} 50. Nc5 {[%clk 00:00:12]} {[%emt
00:00:10]} Qd5 {[%clk 00:00:07]} {[%emt 00:00:08]} 51. Ne4 {[%clk 00:00:10]}
{[%emt 00:00:08]} Qd7 {[%clk 00:00:08]} {[%emt 00:00:04]} 52. g4 {[%clk
00:00:13]} {[%emt 00:00:02]} Qa7 {[%clk 00:00:07]} {[%emt 00:00:06]} 53. Kg3
{[%clk 00:00:17]} {[%emt 00:00:01]} Rd8 {[%clk 00:00:08]} {[%emt 00:00:04]} 54.
h4 {[%clk 00:00:21]} {[%emt 00:00:02]} Qb8+ {[%clk 00:00:12]} 55. Kg2 {[%clk
00:00:25]} Qf4 {[%clk 00:00:12]} {[%emt 00:00:04]} 56. Rc5 {[%clk 00:00:17]}
{[%emt 00:00:14]} Nc7 {[%clk 00:00:15]} {[%emt 00:00:02]} 57. Rf5 {[%clk
00:00:20]} {[%emt 00:00:02]} Qc1 {[%clk 00:00:17]} {[%emt 00:00:03]} 58. Rxf7
{[%clk 00:00:21]} {[%emt 00:00:05]} Ne6 {[%clk 00:00:19]} {[%emt 00:00:02]} 59.
Nf2 {[%clk 00:00:19]} {[%emt 00:00:08]} Nf4+ {[%clk 00:00:21]} {[%emt
00:00:03]} 60. Ne4 {[%clk 00:00:00]} {[%emt 00:00:04]} Ne6 {[%clk 00:00:21]}
0-1

[Event "Esbjerg Efterår 2021 - Esbjergmesterskabet"]
[Site "Esbjerg, Denmark"]
[Date "2021.10.22"]
[Round "2.2"]
[White "Rødgaard, John"]
[Black "Jensen, Henrik Tranberg"]
[Result "1-0"]
[TimeControl "1.-3. 20 min + 5 sek, 4.-7. 90 min + 30 sek"]
[WhiteElo "2319"]
[BlackElo "1960"]

1. Nf3 {[%clk 00:20:03]} {[%emt 00:00:05]} Nf6 {[%clk 00:20:09]} {[%emt
00:00:02]} 2. c4 {[%clk 00:20:05]} {[%emt 00:00:03]} g6 {[%clk 00:20:05]}
{[%emt 00:00:10]} 3. Nc3 {[%clk 00:19:56]} {[%emt 00:00:13]} Bg7 {[%clk
00:20:08]} {[%emt 00:00:02]} 4. e4 {[%clk 00:19:56]} {[%emt 00:00:03]} d6
{[%clk 00:20:02]} {[%emt 00:00:12]} 5. d4 {[%clk 00:19:55]} {[%emt 00:00:06]}
O-O {[%clk 00:20:05]} {[%emt 00:00:03]} 6. Be2 {[%clk 00:19:56]} {[%emt
00:00:03]} c5 {[%clk 00:19:31]} {[%emt 00:00:39]} 7. O-O {[%clk 00:19:26]}
{[%emt 00:00:34]} cxd4 {[%clk 00:19:22]} {[%emt 00:00:16]} 8. Nxd4 {[%clk
00:19:24]} {[%emt 00:00:03]} Nc6 {[%clk 00:19:26]} {[%emt 00:00:05]} 9. Be3
{[%clk 00:18:47]} {[%emt 00:00:41]} Bd7 {[%clk 00:19:25]} {[%emt 00:00:06]} 10.
Qd2 {[%clk 00:16:07]} {[%emt 00:02:44]} Ng4 {[%clk 00:16:57]} {[%emt 00:02:34]}
11. Bxg4 {[%clk 00:16:09]} {[%emt 00:00:03]} Bxg4 {[%clk 00:17:01]} {[%emt
00:00:01]} 12. f3 {[%clk 00:16:07]} {[%emt 00:00:06]} Bd7 {[%clk 00:16:24]}
{[%emt 00:00:43]} 13. Rac1 {[%clk 00:14:42]} {[%emt 00:01:30]} Rc8 {[%clk
00:16:20]} {[%emt 00:00:10]} 14. b3 {[%clk 00:13:51]} {[%emt 00:00:55]} Re8
{[%clk 00:15:29]} {[%emt 00:00:57]} 15. Rfd1 {[%clk 00:13:17]} {[%emt
00:00:38]} Qa5 {[%clk 00:14:16]} {[%emt 00:01:18]} 16. Nde2 {[%clk 00:10:43]}
{[%emt 00:02:38]} Ne5 {[%clk 00:06:31]} {[%emt 00:07:52]} 17. h3 {[%clk
00:05:17]} {[%emt 00:05:30]} Bc6 {[%clk 00:06:29]} {[%emt 00:00:08]} 18. Rc2
{[%clk 00:04:13]} {[%emt 00:01:09]} Nd7 {[%clk 00:04:09]} {[%emt 00:02:26]} 19.
Bd4 {[%clk 00:03:19]} {[%emt 00:00:58]} Bxd4+ {[%clk 00:03:59]} {[%emt
00:00:16]} 20. Nxd4 {[%clk 00:03:14]} {[%emt 00:00:10]} Qc5 {[%clk 00:03:39]}
{[%emt 00:00:24]} 21. Kh1 {[%clk 00:03:10]} {[%emt 00:00:09]} Nf6 {[%clk
00:02:37]} {[%emt 00:01:07]} 22. Nd5 {[%clk 00:01:34]} {[%emt 00:01:41]} Bxd5
{[%clk 00:01:57]} {[%emt 00:00:46]} 23. cxd5 {[%clk 00:01:23]} {[%emt
00:00:15]} Qb6 {[%clk 00:02:01]} {[%emt 00:00:02]} 24. Rdc1 {[%clk 00:01:26]}
{[%emt 00:00:02]} Rc5 {[%clk 00:01:00]} {[%emt 00:01:05]} 25. b4 {[%clk
00:01:20]} {[%emt 00:00:11]} Rxc2 {[%clk 00:00:58]} {[%emt 00:00:08]} 26. Rxc2
{[%clk 00:01:23]} {[%emt 00:00:02]} Kg7 {[%clk 00:00:22]} {[%emt 00:00:41]} 27.
Kh2 {[%clk 00:01:05]} {[%emt 00:00:22]} Rd8 {[%clk 00:00:13]} {[%emt 00:00:15]}
28. Qc3 {[%clk 00:01:00]} {[%emt 00:00:10]} Rd7 {[%clk 00:00:13]} {[%emt
00:00:05]} 29. a4 {[%clk 00:00:54]} {[%emt 00:00:11]} Ne8 {[%clk 00:00:09]}
{[%emt 00:00:09]} 30. Nf5+ {[%clk 00:00:30]} {[%emt 00:00:28]} Kg8 {[%clk
00:00:13]} {[%emt 00:00:01]} 31. Nh6+ {[%clk 00:00:33]} {[%emt 00:00:02]} 1-0

[Event "Esbjerg Efterår 2021 - Esbjergmesterskabet"]
[Site "Esbjerg, Denmark"]
[Date "2021.10.22"]
[Round "2.3"]
[White "Jarlnæs, Erik"]
[Black "Erikkson, Christian Altenburg"]
[Result "0-1"]
[TimeControl "1.-3. 20 min + 5 sek, 4.-7. 90 min + 30 sek"]
[WhiteElo "1952"]
[BlackElo "2135"]

1. e4 {[%clk 00:20:07]} {[%emt 00:00:02]} c5 {[%clk 00:20:08]} {[%emt
00:00:03]} 2. Nf3 {[%clk 00:20:08]} {[%emt 00:00:05]} Nc6 {[%clk 00:20:05]}
{[%emt 00:00:07]} 3. d4 {[%clk 00:20:08]} {[%emt 00:00:05]} cxd4 {[%clk
00:20:08]} {[%emt 00:00:02]} 4. Nxd4 {[%clk 00:20:12]} g6 {[%clk 00:20:11]}
{[%emt 00:00:03]} 5. Nc3 {[%clk 00:19:54]} {[%emt 00:00:22]} Bg7 {[%clk
00:20:12]} {[%emt 00:00:04]} 6. Be3 {[%clk 00:18:19]} {[%emt 00:01:40]} Nf6
{[%clk 00:20:13]} {[%emt 00:00:04]} 7. Bc4 {[%clk 00:17:24]} {[%emt 00:01:00]}
O-O {[%clk 00:20:06]} {[%emt 00:00:13]} 8. O-O {[%clk 00:17:20]} {[%emt
00:00:09]} Nxe4 {[%clk 00:19:14]} {[%emt 00:00:57]} 9. Bxf7+ {[%clk 00:16:59]}
{[%emt 00:00:25]} Rxf7 {[%clk 00:18:33]} {[%emt 00:00:47]} 10. Nxe4 {[%clk
00:16:55]} {[%emt 00:00:09]} d5 {[%clk 00:14:21]} {[%emt 00:04:17]} 11. Ng5
{[%clk 00:16:10]} {[%emt 00:00:48]} Rf6 {[%clk 00:14:10]} {[%emt 00:00:18]} 12.
Ngf3 {[%clk 00:14:58]} {[%emt 00:01:17]} Rf8 {[%clk 00:12:26]} {[%emt
00:01:50]} 13. Nxc6 {[%clk 00:12:18]} {[%emt 00:02:44]} bxc6 {[%clk 00:12:28]}
{[%emt 00:00:03]} 14. Bd4 {[%clk 00:12:10]} {[%emt 00:00:13]} Qd6 {[%clk
00:12:01]} {[%emt 00:00:32]} 15. Bxg7 {[%clk 00:11:45]} {[%emt 00:00:30]} Kxg7
{[%clk 00:12:03]} {[%emt 00:00:03]} 16. Qd4+ {[%clk 00:10:56]} {[%emt
00:00:54]} Kg8 {[%clk 00:11:28]} {[%emt 00:00:40]} 17. Rfe1 {[%clk 00:10:24]}
{[%emt 00:00:37]} Bf5 {[%clk 00:10:17]} {[%emt 00:01:16]} 18. Qh4 {[%emt
00:03:58]} Qf6 {[%clk 00:08:01]} 19. Rxe7 {[%clk 00:08:47]} {[%emt 00:00:10]}
Qxh4 {[%clk 00:07:58]} {[%emt 00:00:08]} 20. Nxh4 {[%clk 00:08:50]} {[%emt
00:00:02]} Bxc2 {[%emt 00:02:00]} 21. Rc7 {[%clk 00:06:57]} Rfc8 {[%clk
00:07:32]} {[%emt 00:00:33]} 22. Rd7 {[%clk 00:04:47]} {[%emt 00:02:16]} a5
{[%clk 00:05:07]} {[%emt 00:02:30]} 23. Nf3 {[%clk 00:04:21]} {[%emt 00:00:30]}
Rd8 {[%clk 00:04:31]} {[%emt 00:00:42]} 24. Rxd8+ {[%clk 00:04:10]} {[%emt
00:00:17]} Rxd8 {[%clk 00:04:35]} 25. Nd4 {[%clk 00:04:14]} Ba4 {[%clk
00:04:15]} {[%emt 00:00:25]} 26. Rc1 {[%clk 00:04:02]} {[%emt 00:00:17]} Re8
{[%clk 00:03:19]} {[%emt 00:01:01]} 27. Kf1 {[%clk 00:03:34]} {[%emt 00:00:32]}
Re4 {[%clk 00:02:43]} {[%emt 00:00:41]} 28. Nf3 {[%clk 00:02:25]} {[%emt
00:01:14]} Bb5+ {[%clk 00:02:34]} {[%emt 00:00:14]} 29. Kg1 {[%clk 00:02:29]}
a4 {[%clk 00:02:32]} {[%emt 00:00:08]} 30. h3 {[%clk 00:02:23]} {[%emt
00:00:09]} Re2 {[%clk 00:02:19]} {[%emt 00:00:18]} 31. Nd4 {[%clk 00:02:19]}
{[%emt 00:00:10]} Rxb2 {[%clk 00:02:19]} {[%emt 00:00:05]} 32. Nxc6 {[%clk
00:02:06]} {[%emt 00:00:18]} Bxc6 {[%emt 00:00:09]} 33. Rxc6 {[%clk 00:02:08]}
Rxa2 {[%clk 00:02:20]} {[%emt 00:00:02]} 34. Rd6 {[%clk 00:02:02]} {[%emt
00:00:11]} Rd2 {[%clk 00:02:13]} {[%emt 00:00:12]} 35. Ra6 {[%clk 00:02:06]}
{[%emt 00:00:01]} Rd4 {[%clk 00:02:12]} {[%emt 00:00:06]} 36. Kf1 {[%clk
00:02:10]} {[%emt 00:00:01]} Rb4 {[%clk 00:02:09]} {[%emt 00:00:09]} 37. Ke2
{[%clk 00:02:10]} {[%emt 00:00:04]} Kg7 {[%clk 00:01:53]} {[%emt 00:00:21]} 38.
Ra5 {[%clk 00:01:58]} {[%emt 00:00:18]} d4 {[%clk 00:01:55]} {[%emt 00:00:02]}
39. Kd3 {[%clk 00:02:02]} Kf6 {[%clk 00:01:55]} {[%emt 00:00:06]} 40. g4 {[%clk
00:01:55]} {[%emt 00:00:11]} Ke6 {[%clk 00:01:47]} {[%emt 00:00:12]} 41. f4
{[%clk 00:01:59]} Kd6 {[%clk 00:01:22]} {[%emt 00:00:31]} 42. h4 {[%clk
00:01:55]} {[%emt 00:00:10]} Ke6 {[%clk 00:01:18]} {[%emt 00:00:08]} 43. Ra6+
{[%clk 00:01:53]} {[%emt 00:00:06]} Kf7 {[%clk 00:01:20]} {[%emt 00:00:03]} 44.
f5 {[%clk 00:01:43]} {[%emt 00:00:16]} gxf5 {[%clk 00:01:22]} {[%emt 00:00:03]}
45. gxf5 {[%clk 00:01:48]} Kg7 {[%clk 00:01:02]} {[%emt 00:00:25]} 46. Ra7+
{[%clk 00:01:47]} {[%emt 00:00:05]} Kf6 {[%clk 00:00:56]} {[%emt 00:00:12]} 47.
Rxh7 {[%clk 00:01:47]} {[%emt 00:00:05]} Kxf5 {[%clk 00:00:58]} {[%emt
00:00:02]} 48. Ra7 {[%clk 00:01:42]} {[%emt 00:00:10]} Kg4 {[%clk 00:01:00]}
{[%emt 00:00:03]} 49. h5 {[%clk 00:01:41]} {[%emt 00:00:07]} Kxh5 {[%clk
00:01:03]} {[%emt 00:00:01]} 50. Ra5+ {[%clk 00:01:44]} {[%emt 00:00:02]} Kg6
{[%clk 00:01:04]} {[%emt 00:00:04]} 51. Ke4 {[%clk 00:01:43]} {[%emt 00:00:04]}
Kf6 {[%clk 00:01:07]} {[%emt 00:00:04]} 52. Ra6+ {[%clk 00:01:48]} {[%emt
00:00:02]} Ke7 {[%clk 00:01:10]} {[%emt 00:00:01]} 53. Kd3 {[%clk 00:01:50]}
{[%emt 00:00:03]} Kd7 {[%clk 00:01:13]} {[%emt 00:00:02]} 54. Ke4 {[%clk
00:01:49]} Kc7 {[%clk 00:01:16]} {[%emt 00:00:07]} 55. Kd3 {[%clk 00:01:49]}
{[%emt 00:00:05]} Kb7 {[%clk 00:01:20]} 56. Rh6 {[%clk 00:01:52]} {[%emt
00:00:02]} a3 {[%clk 00:01:22]} {[%emt 00:00:03]} 57. Rh2 {[%clk 00:01:52]}
{[%emt 00:00:05]} Kb6 {[%clk 00:01:23]} {[%emt 00:00:04]} 58. Ra2 {[%clk
00:01:56]} {[%emt 00:00:02]} Ra4 {[%clk 00:01:27]} {[%emt 00:00:01]} 59. Ke4
{[%clk 00:01:56]} {[%emt 00:00:04]} Kc5 {[%clk 00:01:29]} {[%emt 00:00:03]} 60.
Kd3 {[%clk 00:01:57]} {[%emt 00:00:03]} Kd5 {[%clk 00:01:32]} {[%emt 00:00:02]}
61. Rh2 {[%clk 00:01:55]} {[%emt 00:00:07]} Kc5 {[%clk 00:01:27]} {[%emt
00:00:11]} 62. Rh5+ {[%clk 00:01:58]} {[%emt 00:00:02]} Kb4 {[%clk 00:01:30]}
{[%emt 00:00:01]} 63. Kxd4 {[%clk 00:02:02]} {[%emt 00:00:01]} a2 {[%clk
00:01:33]} {[%emt 00:00:02]} 64. Kd3 {[%clk 00:01:58]} {[%emt 00:00:10]} a1=Q
{[%emt 00:00:14]} 65. Rh4+ {[%clk 00:01:51]} {[%emt 00:00:11]} Kb3 {[%clk
00:01:24]} {[%emt 00:00:05]} 66. Kd4 {[%clk 00:20:05]} {[%emt 00:00:30]} 0-1

[Event "Esbjerg Efterår 2021 - Esbjergmesterskabet"]
[Site "Esbjerg, Denmark"]
[Date "2021.10.22"]
[Round "2.4"]
[White "Bønnelykke, Ole"]
[Black "Husum, Lars"]
[Result "1-0"]
[TimeControl "1.-3. 20 min + 5 sek, 4.-7. 90 min + 30 sek"]
[WhiteElo "1991"]
[BlackElo "1876"]

1. e4 {[%clk 00:20:07]} {[%emt 00:00:03]} e5 {[%clk 00:19:57]} {[%emt
00:00:13]} 2. f4 {[%clk 00:20:08]} {[%emt 00:00:04]} d5 {[%clk 00:19:58]}
{[%emt 00:00:05]} 3. exd5 {[%clk 00:20:09]} {[%emt 00:00:04]} e4 {[%clk
00:20:01]} {[%emt 00:00:02]} 4. d3 {[%clk 00:20:10]} {[%emt 00:00:04]} Qxd5
{[%clk 00:20:02]} {[%emt 00:00:03]} 5. Nc3 {[%clk 00:19:49]} {[%emt 00:00:26]}
Bb4 {[%clk 00:20:05]} {[%emt 00:00:03]} 6. Bd2 {[%clk 00:19:36]} {[%emt
00:00:17]} Bxc3 {[%clk 00:18:44]} {[%emt 00:01:27]} 7. Bxc3 {[%clk 00:19:14]}
{[%emt 00:00:25]} Nf6 {[%clk 00:18:36]} {[%emt 00:00:15]} 8. Bxf6 {[%clk
00:17:29]} {[%emt 00:01:50]} gxf6 {[%clk 00:18:38]} {[%emt 00:00:03]} 9. dxe4
{[%clk 00:17:29]} {[%emt 00:00:05]} Qxe4+ {[%clk 00:18:35]} {[%emt 00:00:07]}
10. Qe2 {[%clk 00:17:30]} {[%emt 00:00:04]} Bf5 {[%clk 00:16:22]} {[%emt
00:02:19]} 11. O-O-O {[%clk 00:15:58]} {[%emt 00:01:36]} O-O {[%clk 00:14:26]}
{[%emt 00:02:02]} 12. Qf2 {[%clk 00:15:08]} {[%emt 00:00:54]} Nc6 {[%clk
00:11:58]} {[%emt 00:02:34]} 13. Bd3 {[%clk 00:13:56]} {[%emt 00:01:16]} Qe6
{[%clk 00:11:38]} {[%emt 00:00:25]} 14. Bxf5 {[%clk 00:09:22]} {[%emt
00:04:39]} Qxf5 {[%clk 00:11:41]} {[%emt 00:00:03]} 15. Ne2 {[%clk 00:08:52]}
{[%emt 00:00:32]} Rad8 {[%clk 00:11:09]} {[%emt 00:00:40]} 16. Nd4 {[%clk
00:07:33]} {[%emt 00:01:24]} Nxd4 {[%clk 00:10:54]} {[%emt 00:00:19]} 17. Rxd4
{[%clk 00:07:36]} {[%emt 00:00:02]} Rxd4 {[%clk 00:10:42]} {[%emt 00:00:18]} 18.
Qxd4 {[%clk 00:07:39]} {[%emt 00:00:02]} c5 {[%clk 00:10:42]} {[%emt 00:00:05]}
19. Qe3 {[%clk 00:06:49]} {[%emt 00:00:54]} Rd8 {[%clk 00:10:10]} {[%emt
00:00:38]} 20. Re1 {[%clk 00:06:27]} {[%emt 00:00:24]} Qd7 {[%clk 00:09:33]}
{[%emt 00:00:44]} 21. g4 {[%clk 00:06:21]} {[%emt 00:00:10]} Qd5 {[%clk
00:08:38]} {[%emt 00:01:02]} 22. b3 {[%clk 00:05:30]} {[%emt 00:00:56]} a5
{[%clk 00:07:39]} {[%emt 00:01:03]} 23. g5 {[%clk 00:05:20]} {[%emt 00:00:15]}
f5 {[%clk 00:07:17]} {[%emt 00:00:28]} 24. h4 {[%clk 00:04:38]} {[%emt
00:00:46]} a4 {[%clk 00:07:06]} {[%emt 00:00:15]} 25. h5 {[%clk 00:04:18]}
{[%emt 00:00:26]} axb3 {[%clk 00:06:30]} {[%emt 00:00:42]} 26. axb3 {[%clk
00:04:01]} {[%emt 00:00:22]} Ra8 {[%clk 00:06:04]} {[%emt 00:00:32]} 27. Kb2
{[%clk 00:03:32]} {[%emt 00:00:32]} c4 {[%clk 00:02:58]} {[%emt 00:03:12]} 28.
h6 {[%clk 00:03:16]} {[%emt 00:00:20]} Rf8 {[%clk 00:00:28]} {[%emt 00:02:36]}
29. Qc3 {[%clk 00:01:47]} {[%emt 00:01:34]} f6 {[%clk 00:00:32]} {[%emt
00:00:02]} 30. gxf6 {[%clk 00:01:38]} {[%emt 00:00:12]} Kf7 {[%clk 00:00:23]}
{[%emt 00:00:15]} 31. Re7+ {[%clk 00:01:14]} {[%emt 00:00:29]} Kg8 {[%clk
00:00:10]} {[%emt 00:00:18]} 32. Qg3+ {[%clk 00:01:16]} {[%emt 00:00:02]} 1-0

[Event "Esbjerg Efterår 2021 - Esbjergmesterskabet"]
[Site "Esbjerg, Denmark"]
[Date "2021.10.22"]
[Round "2.5"]
[White "Medhus, Vitus Bondo"]
[Black "Mortensen, Henrik"]
[Result "1-0"]
[TimeControl "1.-3. 20 min + 5 sek, 4.-7. 90 min + 30 sek"]
[WhiteElo "1875"]
[BlackElo "1991"]

1. e4 {[%clk 00:20:08]} {[%emt 00:00:01]} Nf6 {[%clk 00:20:08]} {[%emt
00:00:02]} 2. e5 {[%clk 00:20:05]} {[%emt 00:00:09]} Nd5 {[%clk 00:20:11]}
{[%emt 00:00:01]} 3. d4 {[%clk 00:20:03]} {[%emt 00:00:08]} d6 {[%clk
00:20:13]} {[%emt 00:00:02]} 4. c4 {[%clk 00:20:04]} {[%emt 00:00:04]} Nb6
{[%clk 00:20:17]} {[%emt 00:00:02]} 5. exd6 {[%clk 00:20:06]} {[%emt 00:00:02]}
exd6 {[%clk 00:20:16]} {[%emt 00:00:06]} 6. Nf3 {[%clk 00:19:57]} {[%emt
00:00:13]} Bg4 {[%clk 00:20:15]} {[%emt 00:00:07]} 7. h3 {[%clk 00:19:51]}
{[%emt 00:00:11]} Bh5 {[%clk 00:20:14]} {[%emt 00:00:05]} 8. Bd3 {[%clk
00:19:31]} {[%emt 00:00:26]} Nc6 {[%clk 00:19:52]} {[%emt 00:00:27]} 9. Be3
{[%clk 00:19:11]} {[%emt 00:00:25]} Be7 {[%clk 00:19:40]} {[%emt 00:00:17]} 10.
O-O {[%clk 00:19:13]} {[%emt 00:00:03]} d5 {[%clk 00:18:18]} {[%emt 00:01:27]}
11. c5 {[%clk 00:18:28]} {[%emt 00:00:51]} Nd7 {[%clk 00:18:19]} {[%emt
00:00:04]} 12. a3 {[%clk 00:18:19]} {[%emt 00:00:13]} O-O {[%clk 00:18:15]}
{[%emt 00:00:09]} 13. Nbd2 {[%clk 00:18:14]} {[%emt 00:00:10]} Bg6 {[%clk
00:17:42]} {[%emt 00:00:38]} 14. Bxg6 {[%clk 00:17:49]} {[%emt 00:00:29]} hxg6
{[%clk 00:17:38]} {[%emt 00:00:09]} 15. Qb3 {[%clk 00:17:26]} {[%emt 00:00:28]}
Nf6 {[%clk 00:16:15]} {[%emt 00:01:28]} 16. Qb4 {[%emt 00:00:36]} b6 17. Qxb6
{[%clk 00:16:54]} Qd7 {[%clk 00:12:37]} {[%emt 00:03:44]} 18. Qa6 {[%clk
00:16:42]} {[%emt 00:00:17]} Ne4 {[%clk 00:11:16]} {[%emt 00:01:26]} 19. Qd3
{[%clk 00:16:05]} {[%emt 00:00:41]} Rfe8 {[%clk 00:10:20]} {[%emt 00:01:02]} 20.
b4 {[%clk 00:14:11]} {[%emt 00:01:59]} g5 {[%clk 00:09:55]} {[%emt 00:00:31]}
21. Nxe4 {[%clk 00:12:59]} {[%emt 00:01:17]} dxe4 {[%clk 00:09:57]} {[%emt
00:00:02]} 22. Qxe4 {[%clk 00:13:00]} {[%emt 00:00:04]} Bxc5 {[%clk 00:09:35]}
{[%emt 00:00:27]} 23. Qc2 {[%clk 00:12:50]} {[%emt 00:00:15]} Be7 {[%clk
00:09:14]} {[%emt 00:00:27]} 24. Rac1 {[%clk 00:12:51]} {[%emt 00:00:04]} Nd8
{[%clk 00:08:31]} {[%emt 00:00:48]} 25. Bxg5 {[%clk 00:12:32]} {[%emt
00:00:24]} Ne6 {[%clk 00:08:21]} {[%emt 00:00:15]} 26. Bxe7 {[%clk 00:12:12]}
{[%emt 00:00:26]} Rxe7 {[%clk 00:08:10]} {[%emt 00:00:15]} 27. Ne5 {[%clk
00:11:27]} {[%emt 00:00:50]} Nxd4 {[%clk 00:07:14]} {[%emt 00:01:01]} 28. Nxd7
{[%clk 00:09:51]} {[%emt 00:01:40]} Nxc2 {[%clk 00:07:17]} {[%emt 00:00:03]} 29.
Rfd1 {[%clk 00:09:54]} {[%emt 00:00:02]} Nxa3 {[%clk 00:06:42]} {[%emt
00:00:40]} 30. Rxc7 {[%clk 00:08:05]} {[%emt 00:01:54]} Re4 {[%clk 00:05:35]}
{[%emt 00:01:13]} 31. Rb7 {[%clk 00:07:06]} {[%emt 00:01:04]} Nc2 {[%clk
00:05:14]} {[%emt 00:00:26]} 32. b5 {[%clk 00:06:56]} {[%emt 00:00:15]} a5
{[%clk 00:04:58]} {[%emt 00:00:20]} 33. b6 {[%clk 00:06:16]} {[%emt 00:00:45]}
a4 {[%clk 00:05:01]} {[%emt 00:00:02]} 34. Ra7 {[%clk 00:06:16]} {[%emt
00:00:04]} 1-0